fUSD/lending_fUSD_20250530
["ID","MTS","AMOUNT","RATE_DAILY","PERIOD"]
[363217234,1748625083226,-420.0,0.00022739,2]
[363217235,1748625083235,-420.0,0.00022739,2]
[363217236,1748625083244,-420.0,0.00022739,2]
[363217237,1748625083254,-420.0,0.00022739,2]
[363217238,1748625083263,-625.87,0.00022739,2]
[363217239,1748625083272,-479.28,0.00022739,2]
[363217240,1748625083282,-420.0,0.00022739,2]
[363217241,1748625083291,-420.0,0.00022739,2]
[363217242,1748625083300,-172.24,0.00022739,2]
[363217243,1748625083310,-420.0,0.00022739,2]
[363217244,1748625083319,-420.0,0.00022739,2]
[363217245,1748625083328,-420.0,0.00022739,2]
[363217246,1748625083337,-420.0,0.00022739,2]
[363217247,1748625083346,-420.0,0.00022739,2]
[363217248,1748625083355,-420.0,0.00022739,2]
[363217249,1748625083365,-767.97,0.00022739,2]
[363217250,1748625083374,-420.0,0.00022739,2]
[363217251,1748625083384,-420.0,0.00022739,2]
[363217252,1748625083395,-538.41,0.00022739,2]
[363217253,1748625083405,-420.0,0.00022739,2]
[363217254,1748625083414,-420.0,0.00022739,2]
[363217255,1748625083424,-420.0,0.00022739,2]
[363217256,1748625083434,-420.0,0.00022739,2]
[363217257,1748625083445,-420.0,0.00022739,2]
[363217258,1748625083454,-420.0,0.00022739,2]
[363217259,1748625083464,-406.17,0.00022739,2]
[363217260,1748625083473,-196.04,0.00022739,2]
[363217261,1748625083482,-420.0,0.00022739,2]
[363217262,1748625083492,-420.0,0.00022739,2]
[363217263,1748625083501,-707.61,0.00022739,2]
[363217264,1748625083511,-1693.06,0.00022739,2]
[363217265,1748625083520,-1227.8,0.00022739,2]
[363217266,1748625083529,-350.15652023,0.00022739,2]
[363217267,1748625083539,-773.15,0.00022739,2]
[363217268,1748625083549,-420.0,0.00022739,2]
[363217269,1748625083558,-500.8,0.00022739,2]
[363217270,1748625083568,-420.0,0.00022739,2]
[363217271,1748625083577,-1146.66,0.00022739,2]
[363217272,1748625083586,-420.0,0.00022739,2]
[363217273,1748625083595,-744.11,0.00022739,2]
[363217274,1748625083605,-479.23208887,0.00022739,2]
[363217275,1748625083615,-420.0,0.00022739,2]
[363217276,1748625083624,-420.0,0.00022739,2]
[363217277,1748625083633,-1199.24,0.00022739,2]
[363217278,1748625083642,-420.0,0.00022739,2]
[363217279,1748625083651,-420.0,0.00022739,2]
[363217280,1748625083661,-420.0,0.00022739,2]
[363217281,1748625083670,-197.58144601,0.00022739,2]
[363217282,1748625083680,-427.9,0.00022739,2]
[363217283,1748625083690,-726.5,0.00022739,2]
[363217284,1748625083699,-420.0,0.00022739,2]
[363217285,1748625083709,-420.0,0.00022739,2]
[363217286,1748625083719,-420.0,0.00022739,2]
[363217287,1748625083729,-420.0,0.00022739,2]
[363217288,1748625083739,-420.0,0.00022739,2]
[363217289,1748625083748,-420.0,0.00022739,2]
[363217290,1748625083758,-430.24511638,0.00022739,2]
[363217291,1748625083767,-420.0,0.00022739,2]
[363217292,1748625083776,-503.86,0.00022739,2]
[363217293,1748625083785,-420.0,0.00022739,2]
[363217294,1748625083794,-420.0,0.00022739,2]
[363217295,1748625083803,-420.0,0.00022739,2]
[363217296,1748625083813,-420.0,0.00022739,2]
[363217297,1748625083822,-420.0,0.00022739,2]
[363217298,1748625083831,-968.4,0.00022739,2]
[363217299,1748625083841,-420.0,0.00022739,2]
[363217300,1748625083850,-420.0,0.00022739,2]
[363217301,1748625083860,-931.16,0.00022739,2]
[363217302,1748625083870,-654.32,0.00022739,2]
[363217303,1748625083879,-415.70598494,0.00022739,2]
[363217304,1748625083889,-512.86,0.00022739,2]
[363217305,1748625083899,-535.34,0.00022739,2]
[363217306,1748625083909,-456.33,0.00022739,2]
[363217307,1748625083918,-420.0,0.00022739,2]
[363217308,1748625083927,-420.0,0.00022739,2]
[363217309,1748625083937,-1933.18,0.00022739,2]
[363217310,1748625083947,-454.61,0.00022739,2]
[363217311,1748625083957,-850.22,0.00022739,2]
[363217312,1748625083966,-419.30791014,0.00022739,2]
[363217313,1748625083976,-420.0,0.00022739,2]
[363217314,1748625083989,-420.0,0.00022739,2]
[363217315,1748625084000,-420.0,0.00022739,2]
[363217316,1748625084009,-794.28,0.00022739,2]
[363217317,1748625084019,-591.04,0.00022739,2]
[363217318,1748625084029,-966.22,0.00022739,2]
[363217319,1748625084038,-420.0,0.00022739,2]
[363217320,1748625084047,-1883.77,0.00022739,2]
[363217321,1748625084057,-466.56,0.00022739,2]
[363217322,1748625084067,-754.05,0.00022739,2]
[363217323,1748625084078,-420.0,0.00022739,2]
[363217324,1748625084087,-562.4,0.00022739,2]
[363217325,1748625084097,-637.54,0.00022739,2]
[363217326,1748625084107,-420.0,0.00022739,2]
[363217327,1748625084117,-626.12,0.00022739,2]
[363217328,1748625084127,-570.41,0.00022739,2]
[363217329,1748625084136,-277.94,0.00022739,2]
[363217330,1748625084146,-420.0,0.00022739,2]
[363217331,1748625084156,-1030.16,0.00022739,2]
[363217332,1748625084166,-565.55,0.00022739,2]
[363217333,1748625084175,-580.8,0.00022739,2]
[363217334,1748625084185,-420.0,0.00022739,2]
[363217335,1748625084196,-420.0,0.00022739,2]
[363217336,1748625084206,-618.44,0.00022739,2]
[363217337,1748625084216,-1410.52,0.00022739,2]
[363217338,1748625084228,-697.57,0.00022739,2]
[363217339,1748625084241,-621.76,0.00022739,2]
[363217340,1748625084251,-470.29,0.00022739,2]
[363217341,1748625084260,-420.0,0.00022739,2]
[363217342,1748625084269,-1022.69,0.00022739,2]
[363217343,1748625084279,-420.0,0.00022739,2]
[363217344,1748625084289,-912.0,0.00022739,2]
[363217345,1748625084299,-612.65,0.00022739,2]
[363217346,1748625084308,-672.85,0.00022739,2]
[363217347,1748625084317,-420.0,0.00022739,2]
[363217348,1748625084327,-420.0,0.00022739,2]
[363217349,1748625084336,-421.45,0.00022739,2]
[363217350,1748625084345,-548.48,0.00022739,2]
[363217351,1748625084355,-495.94,0.00022739,2]
[363217352,1748625084365,-420.0,0.00022739,2]
[363217353,1748625084374,-420.0,0.00022739,2]
[363217354,1748625084383,-535.7,0.00022739,2]
[363217355,1748625084393,-1286.58,0.00022739,2]
[363217356,1748625084402,-420.0,0.00022739,2]
[363217357,1748625084411,-681.6,0.00022739,2]
[363217358,1748625084421,-1353.06,0.00022739,2]
[363217359,1748625084430,-420.0,0.00022739,2]
[363217360,1748625084439,-420.0,0.00022739,2]
[363217361,1748625084450,-955.83,0.00022739,2]
[363217362,1748625084459,-480.48408987,0.00022739,2]
[363217363,1748625084469,-500.0,0.00022739,2]
[363217364,1748625084478,-696.15,0.00022739,2]
[363217365,1748625084488,-520.58,0.00022739,2]
[363217366,1748625084497,-420.0,0.00022739,2]
[363217367,1748625084507,-420.0,0.00022739,2]
[363217368,1748625084516,-420.0,0.00022739,2]
[363217369,1748625084526,-463.08,0.00022739,2]
[363217370,1748625084535,-426.05,0.00022739,2]
[363217371,1748625084545,-420.0,0.00022739,2]
[363217372,1748625084554,-420.0,0.00022739,2]
[363217373,1748625084564,-551.59,0.00022739,2]
[363217374,1748625084573,-420.0,0.00022739,2]
[363217375,1748625084584,-420.0,0.00022739,2]
[363217376,1748625084594,-420.0,0.00022739,2]
[363217377,1748625084604,-865.07,0.00022739,2]
[363217378,1748625084614,-420.0,0.00022739,2]
[363217379,1748625084624,-742.4,0.00022739,2]
[363217380,1748625084634,-995.89,0.00022739,2]
[363217381,1748625084643,-519.35,0.00022739,2]
[363217382,1748625084652,-420.0,0.00022739,2]
[363217383,1748625084662,-1192.47,0.00022739,2]
[363217384,1748625084671,-420.0,0.00022739,2]
[363217385,1748625084681,-420.0,0.00022739,2]
[363217386,1748625084691,-1389.81,0.00022739,2]
[363217387,1748625084701,-427.18,0.00022739,2]
[363217388,1748625084710,-420.0,0.00022739,2]
[363217389,1748625084719,-601.21,0.00022739,2]
[363217390,1748625084730,-420.0,0.00022739,2]
[363217391,1748625084740,-500.0,0.00022739,2]
[363217392,1748625084750,-650.66,0.00022739,2]
[363217393,1748625084759,-420.0,0.00022739,2]
[363217394,1748625084769,-576.3,0.00022739,2]
[363217395,1748625084779,-507.75,0.00022739,2]
[363217396,1748625084789,-158.61596332,0.00022739,2]
[363217397,1748625084800,-586.61,0.00022739,2]
[363217398,1748625084810,-420.0,0.00022739,2]
[363217399,1748625084819,-420.0,0.00022739,2]
[363217400,1748625084830,-458.7,0.00022739,2]
[363217401,1748625084839,-420.0,0.00022739,2]
[363217402,1748625084849,-329.87505398,0.00022739,2]
[363217403,1748625084860,-816.5,0.00022739,2]
[363217404,1748625084869,-766.41,0.00022739,2]
[363217405,1748625084879,-1029.5,0.00022739,2]
[363217406,1748625084888,-503.70599313,0.00022739,2]
[363217407,1748625084898,-420.0,0.00022739,2]
[363217408,1748625084908,-833.33,0.00022739,2]
[363217409,1748625084918,-420.0,0.00022739,2]
[363217410,1748625084928,-420.0,0.00022739,2]
[363217411,1748625084937,-1051.97,0.00022739,2]
[363217412,1748625084951,-502.80797132,0.00022739,2]
[363217413,1748625084960,-420.0,0.00022739,2]
[363217414,1748625084970,-600.53,0.00022739,2]
[363217415,1748625084981,-526.81,0.00022739,2]
[363217416,1748625084994,-521.81235057,0.00022739,2]
[363217417,1748625085003,-420.0,0.00022739,2]
[363217418,1748625085012,-420.0,0.00022739,2]
[363217419,1748625085022,-420.0,0.00022739,2]
[363217420,1748625085033,-420.0,0.00022739,2]
[363217421,1748625085043,-1229.98,0.00022739,2]
[363217422,1748625085053,-420.0,0.00022739,2]
[363217423,1748625085063,-1186.96,0.00022739,2]
[363217424,1748625085073,-420.0,0.00022739,2]
[363217425,1748625085084,-420.0,0.00022739,2]
[363217426,1748625085093,-343.18657128,0.00022739,2]
[363217427,1748625085103,-469.35,0.00022739,2]
[363217428,1748625085113,-447.21,0.00022739,2]
[363217429,1748625085122,-488.18,0.00022739,2]
[363217430,1748625085131,-660.45,0.00022739,2]
[363217431,1748625085140,-186.32808357,0.00022739,2]
[363217432,1748625085150,-2063.23,0.00022739,2]
[363217433,1748625085159,-420.0,0.00022739,2]
[363217434,1748625085169,-420.0,0.00022739,2]
[363217435,1748625085179,-420.0,0.00022739,2]
[363217436,1748625085188,-420.0,0.00022739,2]
[363217437,1748625085199,-420.0,0.00022739,2]
[363217438,1748625085208,-420.0,0.00022739,2]
[363217439,1748625085217,-500.0,0.00022739,2]
[363217440,1748625085226,-1322.22,0.00022739,2]
[363217441,1748625085235,-450.18,0.00022739,2]
[363217442,1748625085245,-420.0,0.00022739,2]
[363217443,1748625085255,-2191.13,0.00022739,2]
[363217444,1748625085265,-420.0,0.00022739,2]
[363217445,1748625085275,-420.0,0.00022739,2]
[363217446,1748625085284,-486.53,0.00022739,2]
[363217447,1748625085294,-1164.97,0.00022739,2]
[363217448,1748625085303,-1104.03,0.00022739,2]
[363217449,1748625085313,-420.0,0.00022739,2]
[363217450,1748625085322,-420.0,0.00022739,2]
[363217451,1748625085332,-879.69,0.00022739,2]
[363217452,1748625085341,-420.0,0.00022739,2]
[363217453,1748625085351,-420.0,0.00022739,2]
[363217454,1748625085361,-420.0,0.00022739,2]
[363217455,1748625085370,-420.0,0.00022739,2]
[363217456,1748625085379,-962.06,0.00022739,2]
[363217457,1748625085388,-420.0,0.00022739,2]
[363217458,1748625085398,-420.0,0.00022739,2]
[363217459,1748625085407,-457.42,0.00022739,2]
[363217460,1748625085416,-420.0,0.00022739,2]
[363217461,1748625085426,-420.0,0.00022739,2]
[363217462,1748625085435,-1143.15,0.00022739,2]
[363217463,1748625085446,-420.0,0.00022739,2]
[363217464,1748625085455,-1669.42,0.00022739,2]
[363217465,1748625085465,-420.0,0.00022739,2]
[363217466,1748625085474,-721.72,0.00022739,2]
[363217467,1748625085484,-420.0,0.00022739,2]
[363217468,1748625085493,-781.5,0.00022739,2]
[363217469,1748625085502,-762.38,0.00022739,2]
[363217470,1748625085511,-620.93,0.00022739,2]
[363217471,1748625085520,-420.0,0.00022739,2]
[363217472,1748625085529,-420.0,0.00022739,2]
[363217473,1748625085538,-420.0,0.00022739,2]
[363217474,1748625085547,-420.0,0.00022739,2]
[363217475,1748625085556,-434.24545763,0.00022739,2]
[363217476,1748625085566,-1054.56,0.00022739,2]
[363217477,1748625085575,-423.58,0.00022739,2]
[363217478,1748625085584,-1226.73,0.00022739,2]
[363217479,1748625085593,-1260.66,0.00022739,2]
[363217480,1748625085602,-420.0,0.00022739,2]
[363217481,1748625085611,-472.5,0.00022739,2]
[363217482,1748625085620,-160.0,0.00022739,2]
[363217483,1748625085630,-460.1,0.00022739,2]
[363217484,1748625085639,-470.05,0.00022739,2]
[363217485,1748625085648,-420.0,0.00022739,2]
[363217486,1748625085657,-420.0,0.00022739,2]
[363217487,1748625085666,-886.1,0.00022739,2]
[363217488,1748625085675,-420.0,0.00022739,2]
[363217489,1748625085685,-420.0,0.00022739,2]
[363217490,1748625085695,-420.0,0.00022739,2]
[363217491,1748625085703,-420.0,0.00022739,2]
[363217492,1748625085713,-420.0,0.00022739,2]
[363217493,1748625085722,-420.0,0.00022739,2]
[363217494,1748625085731,-420.0,0.00022739,2]
[363217495,1748625085740,-420.0,0.00022739,2]
[363217496,1748625085750,-420.0,0.00022739,2]
[363217497,1748625085759,-420.0,0.00022739,2]
[363217498,1748625085769,-472.5,0.00022739,2]
[363217499,1748625085778,-420.0,0.00022739,2]
[363217500,1748625085787,-1360.65,0.00022739,2]
[363217501,1748625085797,-462.0,0.00022739,2]
[363217502,1748625085806,-420.0,0.00022739,2]
[363217503,1748625085815,-420.0,0.00022739,2]
[363217504,1748625085828,-557.63,0.00022739,2]
[363217505,1748625085840,-436.7,0.00022739,2]
[363217506,1748625085849,-692.11,0.00022739,2]
[363217507,1748625085859,-420.0,0.00022739,2]
[363217508,1748625085868,-420.0,0.00022739,2]
[363217509,1748625085877,-420.0,0.00022739,2]
[363217510,1748625085887,-640.54,0.00022739,2]
[363217511,1748625085898,-477.7,0.00022739,2]
[363217512,1748625085907,-420.0,0.00022739,2]
[363217513,1748625085917,-420.0,0.00022739,2]
[363217514,1748625085927,-420.0,0.00022739,2]
[363217515,1748625085936,-420.0,0.00022739,2]
[363217516,1748625085946,-420.0,0.00022739,2]
[363217517,1748625085955,-856.5,0.00022739,2]
[363217518,1748625085965,-614.77,0.00022739,2]
[363217519,1748625085974,-927.02,0.00022739,2]
[363217520,1748625085983,-1872.63,0.00022739,2]
[363217521,1748625085997,-420.0,0.00022739,2]
[363217522,1748625086007,-420.0,0.00022739,2]
[363217523,1748625086016,-439.62107707,0.00022739,2]
[363217524,1748625086025,-420.0,0.00022739,2]
[363217525,1748625086037,-875.19,0.00022739,2]
[363217526,1748625086046,-541.93,0.00022739,2]
[363217527,1748625086055,-1214.08,0.00022739,2]
[363217528,1748625086065,-445.06,0.00022739,2]
[363217529,1748625086074,-420.0,0.00022739,2]
[363217530,1748625086083,-571.32,0.00022739,2]
[363217531,1748625086093,-1013.99,0.00022739,2]
[363217532,1748625086103,-420.0,0.00022739,2]
[363217533,1748625086113,-420.0,0.00022739,2]
[363217534,1748625086123,-497.23,0.00022739,2]
[363217535,1748625086132,-494.69,0.00022739,2]
[363217536,1748625086141,-467.96,0.00022739,2]
[363217537,1748625086330,-795.33,0.00022739,2]
[363217538,1748625086342,-420.0,0.00022739,2]
[363217539,1748625086351,-420.0,0.00022739,2]
[363217540,1748625086361,-420.0,0.00022739,2]
[363217541,1748625086370,-420.0,0.00022739,2]
[363217542,1748625086379,-420.0,0.00022739,2]
[363217543,1748625086389,-420.0,0.00022739,2]
[363217544,1748625086399,-420.0,0.00022739,2]
[363217545,1748625086408,-420.0,0.00022739,2]
[363217546,1748625086417,-420.0,0.00022739,2]
[363217547,1748625086426,-599.97,0.00022739,2]
[363217548,1748625086435,-420.0,0.00022739,2]
[363217549,1748625086444,-498.93,0.00022739,2]
[363217550,1748625086454,-1288.47,0.00022739,2]
[363217551,1748625086463,-1164.4,0.00022739,2]
[363217552,1748625086472,-799.77,0.00022739,2]
[363217553,1748625086482,-420.0,0.00022739,2]
[363217554,1748625086491,-435.18,0.00022739,2]
[363217555,1748625086500,-420.0,0.00022739,2]
[363217556,1748625086510,-430.39,0.00022739,2]
[363217557,1748625086519,-548.38,0.00022739,2]
[363217558,1748625086528,-420.0,0.00022739,2]
[363217559,1748625086538,-11590.59030789,0.00022739,2]
[363217560,1748625086968,-5183.108,0.00022739,2]
[363217561,1748625128347,2000.0,0.00020438,120]
[363217562,1748625253478,175.16,0.00019178,2]
[363217564,1748625479944,-365.58529554,0.00019466,2]
[363217565,1748625486392,-198.23,0.00019466,2]
[363217566,1748625487476,2153.28,0.00019393,2]
[363217567,1748625487514,-29.47470446,0.00019466,2]
[363217568,1748625540970,-170.52529554,0.00019425,2]
[363217569,1748625543814,-322.31587222,0.00019425,2]
[363217570,1748625550243,-193.71062889,0.00019425,2]
[363217571,1748625552456,-315.48841353,0.00019425,2]
[363217572,1748625557936,-153.85978982,0.00019425,2]
[363217573,1748625558001,30.52871841,0.00019327,2]
[363217574,1748625558025,1357.16864559,0.00019327,2]
[363217575,1748625614768,45758.24,0.0001938,2]
[363217578,1748625660043,150.0,0.0001938,7]
[363217579,1748625717364,1489.56,0.00019383,2]
[363217580,1748625750966,5942.34,0.00019266,2]
[363217581,1748625758807,1852.42,0.00019266,2]
[363217582,1748625826709,500.0,0.00019329,2]
[363217583,1748625917428,2636.39,0.00019222,2]
[363217584,1748625918906,1195.67,0.00017305,2]
[363217585,1748625919015,390.56,0.00019222,2]
[363217590,1748625941874,2150.0,0.00019,3]
[363217591,1748625950024,4339.73,0.00019189,2]
[363217592,1748625956311,156.79,0.00015351,2]
[363217593,1748625956768,156.79,0.0001727,2]
[363217594,1748625957002,156.79,0.00019189,2]
[363217595,1748625958119,-458.38,0.00019456,2]
[363217596,1748625958139,-250.0,0.00019542,2]
[363217597,1748625958159,-1195.67,0.00019569,2]
[363217598,1748625958178,-151.0,0.00019809,2]
[363217599,1748625958198,-165.34,0.00019828,2]
[363217600,1748625958218,-151.0,0.00019858,2]
[363217601,1748625958238,-175.82550316,0.00019892,2]
[363217602,1748625958260,-50773.95255225,0.000199,2]
[363217604,1748625985342,182.85,0.00016712,2]
[363217605,1748625997478,2388.64,0.00019237,2]
[363217608,1748626015149,250.0,0.00019237,2]
[363217609,1748626024981,1422.3,0.00019246,2]
[363217610,1748626027585,3290.34,0.000194,2]
[363217611,1748626031997,1600.0,0.000194,7]
[363217612,1748626039091,-3200.0,0.000195,7]
[363217613,1748626039133,-4800.0,0.000196,7]
[363217614,1748626039161,-6400.0,0.000197,7]
[363217615,1748626039196,-427.86578792,0.000199,2]
[363217617,1748626042096,-8000.0,0.000198,7]
[363217618,1748626042118,-5317.4983946,0.000199,2]
[363217619,1748626042140,-928.87910436,0.000199,2]
[363217620,1748626042161,-938.00128699,0.000199,2]
[363217621,1748626042183,-151.0,0.000199,2]
[363217622,1748626042204,-1465.24043158,0.000199,2]
[363217623,1748626042334,-250.0,0.0001995,2]
[363217624,1748626042356,-157.13717609,0.00019973,2]
[363217625,1748626042376,-303.88403609,0.00019973,2]
[363217626,1748626042399,-500.0,0.00019973,2]
[363217627,1748626042419,-500.0,0.00019973,2]
[363217628,1748626042439,-286.0,0.00019998,2]
[363217629,1748626042459,-1000.0,0.00019999,2]
[363217630,1748626042480,-300.0,0.00019999,2]
[363217631,1748626042504,-420.85480471,0.00019999,2]
[363217632,1748626042525,-500.0,0.00019999,2]
[363217633,1748626042546,-304.77893848,0.00019999,2]
[363217634,1748626042567,-207.16235208,0.00019999,2]
[363217635,1748626042587,-448.19334722,0.00019999,2]
[363217636,1748626042608,-357.77485135,0.00019999,2]
[363217637,1748626042629,-500.0,0.00019999,2]
[363217638,1748626042650,-500.0,0.00019999,2]
[363217639,1748626042671,-500.0,0.00019999,2]
[363217640,1748626042692,-500.0,0.00019999,2]
[363217641,1748626042713,-500.0,0.00019999,2]
[363217642,1748626042734,-500.0,0.00019999,2]
[363217643,1748626042759,-500.0,0.00019999,2]
[363217644,1748626042779,-500.0,0.00019999,2]
[363217645,1748626042799,-193.71368669,0.00019999,2]
[363217646,1748626042819,-318.79371916,0.00019999,2]
[363217647,1748626042844,-500.0,0.00019999,2]
[363217648,1748626042865,-500.0,0.00019999,2]
[363217649,1748626042886,-500.0,0.00019999,2]
[363217650,1748626042907,-500.0,0.00019999,2]
[363217651,1748626042929,-500.0,0.00019999,2]
[363217652,1748626042951,-500.0,0.00019999,2]
[363217653,1748626042976,-500.0,0.00019999,2]
[363217654,1748626043004,-500.0,0.00019999,2]
[363217655,1748626043025,-500.0,0.00019999,2]
[363217656,1748626043046,-500.0,0.00019999,2]
[363217657,1748626043067,-500.0,0.00019999,2]
[363217658,1748626043088,-500.0,0.00019999,2]
[363217659,1748626043111,-500.0,0.00019999,2]
[363217660,1748626043133,-608.40115606,0.00019999,2]
[363217661,1748626043158,-500.0,0.00019999,2]
[363217662,1748626043181,-500.0,0.00019999,2]
[363217663,1748626043203,-500.02282709,0.00019999,2]
[363217664,1748626043224,-500.0,0.00019999,2]
[363217665,1748626043245,-557.97306658,0.00019999,2]
[363217666,1748626043267,-500.0,0.00019999,2]
[363217667,1748626043289,-500.0,0.00019999,2]
[363217668,1748626043314,-500.0,0.00019999,2]
[363217669,1748626043336,-500.0,0.00019999,2]
[363217670,1748626043359,-500.0,0.00019999,2]
[363217671,1748626043380,-500.0,0.00019999,2]
[363217672,1748626043405,-500.0,0.00019999,2]
[363217673,1748626043427,-500.0,0.00019999,2]
[363217674,1748626043449,-500.0,0.00019999,2]
[363217675,1748626043472,-305.44824321,0.00019999,2]
[363217676,1748626043493,-500.0,0.00019999,2]
[363217677,1748626043515,-500.0,0.00019999,2]
[363217678,1748626043537,-500.0,0.00019999,2]
[363217679,1748626043558,-208.17370253,0.00019999,2]
[363217681,1748626052237,12497.74,0.0001928,2]
[363217682,1748626069983,273.04,0.00013699,2]
[363217683,1748626073328,920.15,0.00019265,2]
[363217685,1748626086543,2502.13,0.0001922,2]
[363217687,1748626100000,250.0,0.00015,2]
[363217688,1748626101787,300.0,0.00017,2]
[363217689,1748626102178,153.07500668,0.00019,2]
[363217690,1748626102203,196.92499332,0.00019,2]
[363217698,1748626127804,501.53,0.00019202,2]
[363217699,1748626142811,4000.0,0.0001924,2]
[363217716,1748626156344,150.0,0.0001924,2]
[363217721,1748626177999,422.82641689,0.000194,2]
[363217722,1748626179599,1447.17,0.00019232,120]
[363217723,1748626184985,2365.03,0.00019232,2]
[363217729,1748626203804,1000.0,0.00019206,2]
[363217730,1748626211992,23900.0,0.00019166,2]
[363217747,1748626237457,-1588.50000047,0.000197,2]
[363217748,1748626237513,-5887.27688935,0.000197,2]
[363217749,1748626237622,-13.09311018,0.000197,2]
[363217750,1748626237631,-176.25535862,0.000198,2]
[363217751,1748626237639,-200.0,0.000198,2]
[363217752,1748626237648,-176.25535862,0.0001985,2]
[363217753,1748626237656,-200.0,0.00019892,2]
[363217754,1748626237665,-299.0,0.00019899,2]
[363217755,1748626237673,-1200.0,0.00019899,2]
[363217756,1748626237685,-300.0,0.00019899,2]
[363217757,1748626237693,-176.25535862,0.00019899,2]
[363217758,1748626237702,-1600.0,0.000199,7]
[363217759,1748626237710,-259.38605631,0.000199,2]
[363217760,1748626237719,-976.8269544,0.000199,2]
[363217761,1748626237728,-159.48795485,0.00019973,2]
[363217762,1748626237736,-500.0,0.00019973,2]
[363217763,1748626237744,-3250.71,0.00019973,14]
[363217764,1748626237753,-370.50834234,0.00019973,2]
[363217765,1748626237761,-499.0,0.00019973,2]
[363217766,1748626237769,-500.0,0.00019973,2]
[363217767,1748626237778,-500.0,0.00019973,2]
[363217768,1748626237786,-500.0,0.00019973,2]
[363217769,1748626237794,-500.0,0.00019973,2]
[363217770,1748626237803,-500.0,0.00019973,2]
[363217771,1748626237812,-500.0,0.00019973,2]
[363217772,1748626237821,-636.93452924,0.00019985,2]
[363217773,1748626237830,-1311.38,0.0001999,2]
[363217774,1748626237838,-1311.38,0.0001999,2]
[363217775,1748626237847,-1311.38,0.0001999,2]
[363217776,1748626237856,-1311.38,0.0001999,2]
[363217777,1748626237865,-1311.38,0.0001999,2]
[363217779,1748626238128,-1552.94078067,0.00019999,2]
[363217780,1748626238137,-300.0,0.00019999,2]
[363217781,1748626238146,-291.82629747,0.00019999,2]
[363217782,1748626238155,-500.0,0.00019999,2]
[363217783,1748626238165,-500.0,0.00019999,2]
[363217784,1748626238175,-500.0,0.00019999,2]
[363217785,1748626238186,-500.0,0.00019999,2]
[363217786,1748626238195,-150.0,0.00019999,2]
[363217787,1748626238205,-500.0,0.00019999,2]
[363217788,1748626238214,-500.0,0.00019999,2]
[363217789,1748626238223,-500.0,0.00019999,2]
[363217790,1748626238232,-500.0,0.00019999,2]
[363217791,1748626238242,-500.0,0.00019999,2]
[363217792,1748626238251,-500.0,0.00019999,2]
[363217793,1748626238260,-500.0,0.00019999,2]
[363217794,1748626238270,-500.0,0.00019999,2]
[363217795,1748626238279,-500.0,0.00019999,2]
[363217796,1748626238289,-500.0,0.00019999,2]